bitfinex/quotes_BTCUSD_20250620
["timestamp","ask_amount","ask_price","bid_price","bid_amount"]
[1750408878873,6.21754416,106480.0,106470.0,0.24950592]
[1750408879077,5.93244779,106480.0,106470.0,0.27868197]
[1750408879295,0.35664927,106460.0,106450.0,0.37142552]
[1750408879594,0.39788927,106460.0,106450.0,0.54133375]
[1750408880067,0.39788927,106460.0,106450.0,0.54163375]
[1750408880696,0.35764927,106460.0,106450.0,0.54163375]
[1750408880909,0.39888927,106460.0,106450.0,0.54163375]
[1750408881320,0.39888927,106460.0,106450.0,0.54145888]
[1750408882304,0.39888927,106460.0,106450.0,0.57445888]
[1750408882520,0.39888927,106460.0,106450.0,0.60455888]
[1750408882740,0.39888927,106460.0,106450.0,0.58231243]
[1750408883619,0.35764927,106460.0,106450.0,0.58231243]
[1750408883840,0.39888927,106460.0,106450.0,0.58231243]
[1750408885033,0.60764927,106460.0,106450.0,0.58231243]
[1750408885251,0.64888927,106460.0,106450.0,0.58231243]
[1750408886132,0.64888927,106460.0,106450.0,0.42639243]
[1750408886357,0.64888927,106460.0,106450.0,0.60993701]
[1750408886576,0.64888927,106460.0,106450.0,0.58231243]
[1750408886798,0.64888927,106460.0,106450.0,0.45401701]
[1750408887020,0.968747,106460.0,106450.0,0.4870335]
[1750408889339,0.968747,106460.0,106450.0,0.51465808]
[1750408889652,0.968747,106460.0,106450.0,0.45357848]
[1750408890392,0.64888927,106460.0,106450.0,0.45357848]
[1750408890640,0.968747,106460.0,106450.0,0.45357848]
[1750408891303,0.64888927,106460.0,106450.0,0.29765848]
[1750408891515,0.64888927,106460.0,106450.0,0.50728137]
[1750408894471,0.60764927,106460.0,106450.0,0.52607137]
[1750408894725,0.64884927,106460.0,106450.0,0.50728137]
[1750408896190,0.60764927,106460.0,106450.0,1.00137623]
[1750408897158,0.60764927,106460.0,106450.0,0.6815185]
[1750408897394,0.60764927,106460.0,106450.0,1.00137623]
[1750408898864,0.60764927,106460.0,106450.0,0.6815185]
[1750408899112,0.60764927,106460.0,106450.0,1.00137623]
[1750408899755,0.60764927,106460.0,106450.0,1.00169623]
[1750408901155,0.60764927,106460.0,106450.0,0.6817985]
[1750408901381,0.60764927,106460.0,106450.0,1.00165623]
[1750408902484,0.60764927,106460.0,106450.0,0.62847934]
[1750408906367,0.60764927,106460.0,106450.0,0.94821707]
[1750408907517,0.60764927,106460.0,106450.0,0.62835934]
[1750408911439,0.60764927,106460.0,106450.0,0.62827934]
[1750408914079,0.55836504,106460.0,106450.0,0.65611455]
[1750408914891,0.55836504,106460.0,106450.0,0.61928232]
[1750408915513,0.55836504,106460.0,106450.0,0.93914005]
[1750408916178,0.55836504,106460.0,106450.0,0.61928232]
[1750408916347,0.55836504,106460.0,106450.0,0.65611509]
[1750408917429,0.55836504,106460.0,106450.0,0.50023509]
[1750408917643,0.55836504,106460.0,106450.0,0.65611509]
[1750408919742,0.87822277,106460.0,106450.0,0.39485858]
[1750408919963,0.88761535,106460.0,106450.0,0.39235965]
[1750408920188,0.93937819,106460.0,106450.0,0.2086439]
[1750408920407,1.20752811,106460.0,106450.0,0.36452452]
[1750408920626,1.19813553,106460.0,106450.0,0.19942636]
[1750408920841,6.57874287,106460.0,106450.0,0.15803065]
[1750408921074,6.6740218,106460.0,106450.0,0.00215065]
[1750408921330,7.18274174,106460.0,106450.0,0.00215065]
[1750408921548,6.96078901,106460.0,106450.0,0.00215065]
[1750408921761,7.11666901,106460.0,106450.0,0.00215065]
[1750408921975,7.11566901,106460.0,106450.0,0.00215065]
[1750408922200,7.11567022,106460.0,106450.0,0.00715065]
[1750408922676,7.11567042,106460.0,106450.0,0.00515065]
[1750408923123,7.10687479,106460.0,106450.0,0.00515065]
[1750408923353,7.08928352,106460.0,106450.0,0.00515065]
[1750408923860,7.08928352,106460.0,106450.0,0.00215065]
[1750408924085,7.0826868,106460.0,106450.0,0.00315065]
[1750408924335,7.10025506,106460.0,106450.0,0.00315065]
[1750408925110,7.10025256,106460.0,106450.0,0.00315065]
[1750408925648,7.0914697,106460.0,106450.0,0.00315065]
[1750408926741,7.1090212,106460.0,106450.0,0.00315065]
[1750408927159,7.0914697,106460.0,106450.0,0.00315065]
[1750408929064,6.77161197,106460.0,106450.0,0.00315065]
[1750408929323,7.0914697,106460.0,106450.0,0.00315065]
[1750408929863,7.0826868,106460.0,106450.0,0.00315065]
[1750408930170,6.8856068,106460.0,106450.0,0.19103228]
[1750408930424,7.0826868,106460.0,106450.0,0.00315065]
[1750408930689,7.0826868,106460.0,106450.0,0.19103228]
[1750408930946,7.0826868,106460.0,106450.0,0.00315065]
[1750408933615,7.07329387,106460.0,106450.0,0.00315065]
[1750408938315,7.08206415,106460.0,106450.0,0.00315065]
[1750408939373,6.88498415,106460.0,106450.0,0.00315065]
[1750408939596,7.08206415,106460.0,106450.0,0.00315065]
[1750408943380,7.05206415,106460.0,106450.0,0.00315065]
[1750408944248,7.05203415,106460.0,106450.0,0.00315065]
[1750408944471,7.09959309,106460.0,106450.0,0.00315065]
[1750408945154,7.09960232,106460.0,106450.0,0.00315065]
[1750408945606,6.95030705,106460.0,106450.0,0.00315065]
[1750408945831,6.95030705,106460.0,106440.0,0.0001]
[1750408945832,0.53841553,106450.0,106440.0,0.0001]
[1750408946055,7.0735131,106450.0,106440.0,0.00056919]
[1750408946279,5.64943406,106440.0,106430.0,0.0201]
[1750408946505,6.57323163,106440.0,106430.0,0.02024073]
[1750408946990,6.60146463,106440.0,106430.0,0.02024073]
[1750408947881,6.60974145,106440.0,106430.0,0.02024073]
[1750408948073,6.61267517,106440.0,106430.0,0.02024073]
[1750408948333,6.41445517,106440.0,106430.0,0.02024073]
[1750408948549,6.40581686,106440.0,106430.0,0.27165767]
[1750408948772,6.56169686,106440.0,106430.0,0.29044918]
[1750408949001,6.36661686,106440.0,106430.0,0.29044918]
[1750408949221,6.36761686,106440.0,106430.0,0.29984476]
[1750408949486,6.37714271,106440.0,106430.0,0.29044918]
[1750408949706,6.57422271,106440.0,106430.0,0.29984476]
[1750408950226,6.57422271,106440.0,106430.0,0.29044918]
[1750408950460,6.37714271,106440.0,106430.0,0.29044918]
[1750408950701,6.54128899,106440.0,106430.0,0.29044918]
[1750408950945,6.56485659,106440.0,106430.0,0.28105351]
[1750408951177,6.55546181,106440.0,106430.0,0.05125322]
[1750408951415,6.55660181,106440.0,106430.0,0.05125322]
[1750408951922,6.55660181,106440.0,106430.0,0.23917016]
[1750408952159,6.55660181,106440.0,106430.0,0.05125322]
[1750408953143,6.55660181,106440.0,106430.0,0.05116585]
[1750408953591,6.55660035,106440.0,106430.0,0.05116585]
[1750408954021,6.55660035,106440.0,106430.0,0.02006585]
[1750408955615,0.06247496,106440.0,106430.0,0.30136925]
[1750408955838,0.72293783,106440.0,106430.0,0.33221763]
[1750408956068,0.74172704,106440.0,106430.0,0.30136943]
[1750408956339,1.25887892,106440.0,106430.0,0.30106943]
[1750408956586,1.26727388,106440.0,106430.0,0.31076474]
[1750408957036,6.31727388,106440.0,106430.0,0.29167403]
[1750408957260,6.24793042,106440.0,106430.0,0.24957863]
[1750408957477,6.29787739,106440.0,106430.0,0.24957863]
[1750408957694,6.29787739,106440.0,106430.0,0.28027863]
[1750408957918,6.27769555,106440.0,106430.0,0.08296585]
[1750408958191,6.28648278,106440.0,106430.0,0.08296585]
[1750408958431,6.28648278,106440.0,106430.0,0.05426585]
[1750408958676,6.44350278,106440.0,106430.0,0.05626585]
[1750408959128,6.44350278,106440.0,106430.0,0.02406585]
[1750408959350,6.53878171,106440.0,106430.0,0.02406585]
[1750408959575,6.53878171,106440.0,106430.0,0.21198279]
[1750408961599,6.21778398,106440.0,106430.0,0.28417846]
[1750408961831,6.21778398,106440.0,106430.0,0.27478279]
[1750408962106,6.53764171,106440.0,106430.0,0.28417854]
[1750408962321,6.53764262,106440.0,106430.0,0.29357421]
[1750408962754,6.54703731,106440.0,106430.0,0.31236528]
[1750408962966,6.54703731,106440.0,106430.0,0.30296979]
[1750408963407,6.3591375,106440.0,106430.0,0.30296961]
[1750408963624,6.12676716,106440.0,106430.0,0.3123651]
[1750408964057,6.12676716,106440.0,106430.0,0.31236519]
[1750408964273,6.12676716,106440.0,106430.0,0.3217605]
[1750408964515,6.11737238,106440.0,106430.0,0.3217605]
[1750408964774,6.12676716,106440.0,106430.0,0.31236475]
[1750408964985,6.3240614,106440.0,106430.0,0.29357395]
[1750408965555,6.3240614,106440.0,106430.0,0.30296953]
[1750408965780,6.12676716,106440.0,106430.0,0.31236493]
[1750408966000,6.11797902,106440.0,106430.0,0.31236493]
[1750408966227,6.12737398,106440.0,106430.0,0.31236493]
[1750408966443,6.12737389,106440.0,106430.0,0.32176024]
[1750408966627,6.11797902,106440.0,106430.0,0.32205979]
[1750408966859,6.1156354,106440.0,106430.0,0.32205979]
[1750408967329,6.31292955,106440.0,106430.0,0.29387386]
[1750408967542,6.31292955,106440.0,106430.0,0.29387421]
[1750408967762,6.11563611,106440.0,106430.0,0.3032697]
[1750408967976,6.11563611,106440.0,106430.0,0.31266501]
[1750408968216,6.11563611,106440.0,106430.0,0.3126651]
[1750408968444,6.11563611,106440.0,106430.0,0.3032697]
[1750408968648,6.10624124,106440.0,106430.0,0.3032697]
[1750408968865,6.1156362,106440.0,106430.0,0.3032697]
[1750408969076,6.30353548,106440.0,106430.0,0.3126651]
[1750408969292,6.30353548,106440.0,106430.0,0.3032697]
[1750408970675,6.29456685,106440.0,106430.0,0.3032697]
[1750408970892,6.28517233,106440.0,106430.0,0.28447863]
[1750408971083,6.26638268,106440.0,106430.0,0.28417863]
[1750408971559,6.26638268,106440.0,106430.0,0.08686585]
[1750408972005,6.26754268,106440.0,106430.0,0.05456585]
[1750408972898,6.26754268,106440.0,106430.0,0.25187863]
[1750408973155,6.26754268,106440.0,106430.0,0.29167438]
[1750408973367,6.26754268,106440.0,106430.0,0.28227863]
[1750408974111,6.51750161,106440.0,106430.0,0.08496585]
[1750408974331,6.51866161,106440.0,106430.0,0.08496585]
[1750408974983,6.51866161,106440.0,106430.0,0.27288279]
[1750408975192,6.51866161,106440.0,106430.0,0.08496585]
[1750408975444,6.51823599,106440.0,106430.0,0.08496585]
[1750408975688,6.53363763,106440.0,106430.0,0.08496585]
[1750408976126,6.53363763,106440.0,106430.0,0.05456585]
[1750408977546,6.53363763,106440.0,106430.0,0.08486585]
[1750408978334,6.53247763,106440.0,106430.0,0.05456585]
[1750408978557,6.53363763,106440.0,106430.0,0.02406585]
[1750408979014,6.55124992,106440.0,106430.0,0.02406585]
[1750408979882,6.55125557,106440.0,106430.0,0.02406585]
[1750408980212,6.55125557,106440.0,106430.0,0.04285585]
[1750408980425,6.55125557,106440.0,106430.0,0.02406585]
[1750408980719,5.91154011,106440.0,106430.0,0.02406585]
[1750408980962,6.55125557,106440.0,106430.0,0.02406585]
[1750408981230,6.55125557,106440.0,106430.0,0.05586585]
[1750408982150,6.55126153,106440.0,106430.0,0.05586585]
[1750408982598,6.55126153,106440.0,106430.0,0.02406585]
[1750408983034,6.57445472,106440.0,106430.0,0.02406585]
[1750408983281,6.55023599,106440.0,106430.0,0.02406585]
[1750408983491,6.57846499,106440.0,106430.0,0.02406585]
[1750408983732,6.61149518,106440.0,106430.0,0.02406585]
[1750408984199,6.63268711,106440.0,106430.0,0.02406585]
[1750408984377,6.62608108,106440.0,106430.0,0.02406585]
[1750408984895,6.66341009,106440.0,106430.0,0.02406585]
[1750408985116,6.65240021,106440.0,106430.0,0.02406585]
[1750408985354,6.63120906,106440.0,106430.0,0.02406585]
[1750408985592,6.66120906,106440.0,106430.0,0.02406585]
[1750408985789,6.67002191,106440.0,106430.0,0.02406585]
[1750408986034,6.67002192,106440.0,106430.0,0.02406585]
[1750408987003,6.67002778,106440.0,106430.0,0.02406585]
[1750408987687,6.67001086,106440.0,106430.0,0.02406585]
[1750408989615,7.00440944,106440.0,106410.0,0.06479]
[1750408989851,6.23760288,106420.0,106410.0,0.00133096]
[1750408990103,6.51287664,106420.0,106410.0,0.00133096]
[1750408990567,6.54111164,106420.0,106410.0,0.00133096]
[1750408990803,6.22009391,106420.0,106410.0,0.06403096]
[1750408991028,6.20250017,106420.0,106410.0,0.06403096]
[1750408991483,6.22009353,106420.0,106410.0,0.06403096]
[1750408991739,6.20550017,106420.0,106410.0,0.06403096]
[1750408991997,6.54295183,106420.0,106410.0,0.06403096]
[1750408992247,6.54894846,106420.0,106410.0,0.06403096]
[1750408992495,6.53135453,106420.0,106410.0,0.06394347]
[1750408994406,6.53135453,106420.0,106410.0,0.0638561]
[1750408994855,6.2526168,106420.0,106410.0,0.0641561]
[1750408995552,5.5766045,106410.0,106400.0,0.2349546]
[1750408995772,5.25674677,106410.0,106400.0,0.23500155]
[1750408996007,5.5766045,106410.0,106400.0,0.23500155]
[1750408996248,5.5766045,106410.0,106400.0,0.2443996]
[1750408996952,5.90785984,106410.0,106400.0,0.2443996]
[1750408997390,5.89846276,106410.0,106400.0,0.23500155]
[1750408997813,5.57860503,106410.0,106400.0,0.23500155]
[1750408998381,5.57860503,106410.0,106400.0,0.29910155]
[1750408998593,5.58260503,106410.0,106400.0,0.29910155]
[1750408998807,5.58260503,106410.0,106400.0,0.08293695]
[1750408999072,5.88366772,106410.0,106400.0,0.08293695]
[1750408999293,6.03946772,106410.0,106400.0,0.08293695]
[1750408999766,6.13474665,106410.0,106400.0,0.08293695]
[1750408999995,6.13474665,106410.0,106400.0,4.695e-05]
[1750409000229,6.13592665,106410.0,106400.0,4.695e-05]
[1750409001142,6.77223759,106410.0,106400.0,4.695e-05]
[1750409001365,6.78981461,106410.0,106400.0,4.695e-05]
[1750409001582,6.77223759,106410.0,106400.0,4.695e-05]
[1750409002018,6.77223364,106410.0,106400.0,4.695e-05]
[1750409002463,6.76823364,106410.0,106400.0,4.695e-05]
[1750409002977,6.76923364,106410.0,106400.0,4.695e-05]
[1750409003220,6.77801629,106410.0,106400.0,4.695e-05]
[1750409004861,6.77801228,106410.0,106400.0,4.695e-05]
[1750409007058,6.80625328,106410.0,106400.0,4.695e-05]
[1750409007281,6.82381762,106410.0,106400.0,4.695e-05]
[1750409007702,6.82381799,106410.0,106400.0,4.695e-05]
[1750409010320,6.79281799,106410.0,106400.0,4.695e-05]
[1750409010598,6.79282063,106410.0,106400.0,4.695e-05]
[1750409011474,6.83394063,106410.0,106400.0,4.695e-05]
[1750409011680,6.86604063,106410.0,106400.0,4.695e-05]
[1750409012117,6.84847629,106410.0,106400.0,4.695e-05]
[1750409012573,6.84890191,106410.0,106400.0,4.695e-05]
[1750409013514,6.81681222,106410.0,106400.0,4.695e-05]
[1750409013738,5.94717676,106410.0,106400.0,4.695e-05]
[1750409013957,6.78263222,106410.0,106400.0,0.06244695]
[1750409014178,6.78263222,106410.0,106400.0,0.03224695]
[1750409014420,6.78381222,106410.0,106400.0,4.695e-05]
[1750409014642,6.84841222,106410.0,106400.0,4.695e-05]
[1750409015795,6.83962134,106410.0,106400.0,4.695e-05]
[1750409016284,6.83962673,106410.0,106400.0,4.695e-05]
[1750409017038,0.1973867,106390.0,106380.0,0.05910306]
[1750409017260,5.82768256,106390.0,106380.0,0.0591508]
[1750409017689,5.83427725,106390.0,106380.0,0.0580608]
[1750409018134,5.82768256,106390.0,106380.0,0.0580608]
[1750409018439,6.15413501,106390.0,106380.0,0.00304774]
[1750409018678,5.88266455,106390.0,106380.0,0.00304774]
[1750409018916,6.51578529,106390.0,106380.0,0.00304774]
[1750409019153,5.88384507,106390.0,106380.0,0.00304774]
[1750409019380,6.52356053,106390.0,106380.0,0.00504774]
[1750409019613,6.55606053,106390.0,106380.0,0.00504774]
[1750409019859,6.52356053,106390.0,106380.0,0.00504774]
[1750409020084,6.52356053,106390.0,106380.0,0.00304774]
[1750409020309,6.52356053,106390.0,106380.0,4.774e-05]
[1750409020542,6.55606053,106390.0,106380.0,4.774e-05]
[1750409020780,0.2068246,106370.0,106360.0,2.063]
[1750409021012,0.2068246,106370.0,106360.0,2.0315]
[1750409021013,6.20009423,106370.0,106360.0,2.0315]
[1750409021244,6.98947281,106370.0,106360.0,1.47641262]
[1750409021473,6.98947281,106370.0,106360.0,0.67150102]
[1750409021474,7.04047281,106370.0,106360.0,0.67150102]
[1750409021707,7.16376625,106370.0,106360.0,0.1587346]
[1750409021973,7.26615836,106370.0,106360.0,0.07819333]
[1750409022209,7.26615836,106370.0,106320.0,1.925293]
[1750409022210,0.54690241,106330.0,106320.0,1.925293]
[1750409022456,7.11477062,106330.0,106320.0,1.47231549]
[1750409022649,7.12424267,106330.0,106320.0,1.43831549]
[1750409022910,6.99728364,106330.0,106320.0,1.43284634]
[1750409023381,6.99728364,106330.0,106320.0,1.35847038]
[1750409023382,7.09623364,106330.0,106320.0,1.35847038]
[1750409023627,7.09637429,106330.0,106320.0,1.31168586]
[1750409024069,6.99742429,106330.0,106320.0,0.88699024]
[1750409024277,7.02522775,106330.0,106320.0,0.71354763]
[1750409024503,7.03035536,106330.0,106320.0,0.12171739]
[1750409024720,6.82735536,106330.0,106320.0,0.12171739]
[1750409024940,7.03035536,106330.0,106320.0,0.12171739]
[1750409025405,7.03235536,106330.0,106320.0,0.04827732]
[1750409025659,7.03235536,106330.0,106320.0,0.00123732]
[1750409026174,0.20701922,106270.0,106260.0,0.0315]
[1750409026393,0.20701922,106270.0,106260.0,0.25191757]
[1750409026394,5.98215137,106270.0,106260.0,0.25191757]
[1750409026623,0.59410846,106270.0,106260.0,0.28014913]
[1750409026849,0.62757874,106270.0,106260.0,0.28014913]
[1750409027085,5.93916154,106270.0,106260.0,0.26132836]
[1750409027310,5.74400812,106270.0,106260.0,0.25191757]
[1750409027537,5.74400812,106270.0,106260.0,0.26132836]
[1750409027538,6.12745047,106270.0,106260.0,0.26132836]
[1750409027756,6.11804075,106270.0,106260.0,0.26432836]
[1750409027977,6.11804075,106270.0,106260.0,0.27373906]
[1750409028198,6.27876075,106270.0,106260.0,0.0667]
[1750409028426,6.37403968,106270.0,106260.0,0.0687]
[1750409028926,6.37403968,106270.0,106260.0,0.005]
[1750409029163,5.44707768,106240.0,106230.0,0.0001]
[1750409029403,5.44707768,106240.0,106220.0,2.0]
[1750409029404,5.43768408,106230.0,106220.0,2.0]
[1750409029665,6.09589609,106230.0,106220.0,2.0]
[1750409030132,5.94454936,106230.0,106220.0,2.0]
[1750409030358,6.17651736,106230.0,106220.0,2.0]
[1750409031058,6.24114617,106230.0,106220.0,2.0]
[1750409031292,6.29214617,106230.0,106220.0,1.98525049]
[1750409032228,1.80326676,106230.0,106220.0,0.14356805]
[1750409032499,4.33825806,106160.0,106150.0,0.26522863]
[1750409032729,4.65941814,106170.0,106160.0,0.2711339]
[1750409032967,4.70421814,106170.0,106160.0,0.28997223]
[1750409033194,4.74193546,106170.0,106160.0,0.28997223]
[1750409033421,4.723099,106170.0,106160.0,0.28997223]
[1750409033644,4.74193555,106170.0,106160.0,0.28997223]
[1750409033862,4.75149433,106170.0,106160.0,0.28997223]
[1750409034094,4.72323928,106170.0,106160.0,0.28997223]
[1750409034329,4.41683762,106170.0,106160.0,0.25329487]
[1750409034551,0.35155851,106170.0,106160.0,0.0649]
[1750409034785,0.36097683,106170.0,106160.0,0.0649]
[1750409035023,0.37039542,106170.0,106160.0,0.06609]
[1750409035231,0.36097683,106170.0,106160.0,0.06609]
[1750409035449,4.93436989,106170.0,106160.0,0.06609]
[1750409035671,4.90711493,106170.0,106160.0,0.06609]
[1750409035893,5.00239386,106170.0,106160.0,0.06609]
[1750409036392,5.00239386,106170.0,106160.0,0.0649]
[1750409036641,5.00239386,106170.0,106160.0,0.06609]
[1750409037088,5.00139386,106170.0,106160.0,0.06609]
[1750409037330,4.99939386,106170.0,106160.0,0.06509]
[1750409037512,5.00039386,106170.0,106160.0,0.06566438]
[1750409037730,5.00039386,106170.0,106160.0,0.06194514]
[1750409037951,5.16607386,106170.0,106160.0,0.06194514]
[1750409038176,5.16607386,106170.0,106160.0,0.06075514]
[1750409038399,5.16607386,106170.0,106160.0,0.001]
[1750409038400,5.56824694,106170.0,106160.0,0.001]
[1750409039350,5.58278779,106170.0,106160.0,0.001]
[1750409039576,5.63278779,106170.0,106160.0,0.001]
[1750409040028,5.24998751,106160.0,106150.0,0.0001]
[1750409040308,5.10885336,106160.0,106150.0,0.0001]
[1750409040749,5.51426644,106160.0,106150.0,0.0001]
[1750409040975,5.34526644,106160.0,106150.0,0.0001]
[1750409041230,5.16109336,106160.0,106150.0,0.0644]
[1750409041490,5.56326644,106160.0,106150.0,0.0001]
[1750409041716,5.84743952,106160.0,106150.0,0.0001]
[1750409041945,6.08006037,106160.0,106150.0,0.0001]
[1750409042189,6.08406037,106160.0,106150.0,0.0001]
[1750409042482,5.364547,106150.0,106140.0,0.0159724]
[1750409042720,5.22685285,106150.0,106140.0,0.00467254]
[1750409043164,5.14110034,106150.0,106140.0,0.00467254]
[1750409043400,5.13167989,106150.0,106140.0,0.0326]
[1750409043618,0.01884631,106120.0,106110.0,0.71335758]
[1750409043843,4.6521281,106120.0,106110.0,0.71335758]
[1750409044116,4.6521281,106120.0,106110.0,0.90184122]
[1750409044351,4.6521281,106120.0,106110.0,0.93011269]
[1750409044352,4.43359593,106120.0,106110.0,0.93011269]
[1750409044588,4.65,106120.0,106110.0,1.33228577]
[1750409045045,4.65014018,106120.0,106110.0,1.33347577]
[1750409045265,0.34014018,106120.0,106110.0,0.93130269]
[1750409045483,4.36838089,106140.0,106130.0,0.23849548]
[1750409045698,4.51731184,106120.0,106110.0,0.65094208]
[1750409045932,4.61259077,106120.0,106110.0,0.66084319]
[1750409046147,4.60316792,106120.0,106110.0,0.83990274]
[1750409046404,4.59374481,106120.0,106110.0,0.6830191]
[1750409046656,4.59374481,106120.0,106110.0,0.6810191]
[1750409046915,4.59474481,106120.0,106110.0,0.68484422]
[1750409047166,4.59374481,106120.0,106110.0,0.68084422]
[1750409047405,4.59474481,106120.0,106110.0,0.68284422]
[1750409048628,4.59474481,106120.0,106110.0,0.68384422]
[1750409048843,4.59474481,106120.0,106110.0,0.71674422]
[1750409050078,4.49946588,106120.0,106110.0,0.7340274]
[1750409050912,4.49946588,106120.0,106110.0,0.73402675]
[1750409051936,4.59474481,106120.0,106110.0,0.73402675]
[1750409053001,4.64370481,106120.0,106110.0,0.73402675]
[1750409053269,5.21547789,106120.0,106110.0,0.73407025]
[1750409053538,4.64370481,106120.0,106110.0,0.73407096]
[1750409054810,4.81330481,106120.0,106110.0,0.73407096]
[1750409055086,4.64370481,106120.0,106110.0,0.73407096]
[1750409055590,4.54842588,106120.0,106110.0,0.73407096]
[1750409055793,4.55784917,106120.0,106110.0,0.93197878]
[1750409056001,0.07822898,106120.0,106110.0,0.95082633]
[1750409056217,0.41822898,106120.0,106110.0,0.96024989]
[1750409056430,0.40880516,106120.0,106110.0,0.96024989]
[1750409056673,0.56715691,106120.0,106110.0,1.12018651]
[1750409056915,4.90727184,106120.0,106110.0,1.0918746]
[1750409057126,4.90727184,106120.0,106110.0,1.11002934]
[1750409057342,4.99312792,106120.0,106110.0,0.74280152]
[1750409057979,4.89784899,106120.0,106110.0,0.74280152]
[1750409058272,4.88842588,106120.0,106110.0,0.74280152]
[1750409058713,4.88842588,106120.0,106110.0,0.91204152]
[1750409059133,4.88842588,106120.0,106110.0,0.88598422]
[1750409059346,4.88842588,106120.0,106110.0,1.10066713]
[1750409059581,5.13842588,106120.0,106110.0,1.10066713]
[1750409059792,5.13842588,106120.0,106110.0,0.91210349]
[1750409060007,5.13842588,106120.0,106110.0,0.74294434]
[1750409060438,5.64245398,106120.0,106110.0,0.7330204]
[1750409060663,5.81149398,106120.0,106110.0,0.7330204]
[1750409060893,5.4093209,106120.0,106110.0,0.7330204]
[1750409061119,5.4093209,106120.0,106110.0,0.7342404]
[1750409061552,5.2402809,106120.0,106110.0,0.7342404]
[1750409061789,5.1913209,106120.0,106110.0,0.7342404]
[1750409062011,5.1913209,106120.0,106110.0,1.08311099]
[1750409062012,0.25759472,106120.0,106110.0,1.08311099]
[1750409062250,0.251,106120.0,106110.0,1.08311099]
[1750409062470,0.251,106120.0,106110.0,1.580563]
[1750409062696,0.251,106120.0,106110.0,1.20619643]
[1750409062920,0.251,106120.0,106110.0,1.18868032]
[1750409063633,0.251,106120.0,106110.0,1.09357887]
[1750409064065,0.26984525,106120.0,106110.0,1.09357887]
[1750409064283,0.27926818,106120.0,106110.0,1.09357887]
[1750409064711,0.26984525,106120.0,106110.0,1.10259873]
[1750409064966,0.27926818,106120.0,106110.0,1.10259873]
[1750409065182,0.26984525,106120.0,106110.0,1.10258965]
[1750409065404,0.27926827,106120.0,106110.0,1.10258965]
[1750409065621,0.26984525,106120.0,106110.0,1.10258965]
[1750409065842,0.48376193,106120.0,106110.0,1.1306979]
[1750409066058,0.29501341,106120.0,106110.0,1.14012146]
[1750409066474,0.48347929,106120.0,106110.0,1.09730941]
[1750409066800,0.49290258,106120.0,106110.0,1.11615732]
[1750409067020,0.48348009,106120.0,106110.0,1.11615741]
[1750409067239,0.48348009,106120.0,106110.0,1.12558105]
[1750409067912,0.48348009,106120.0,106110.0,1.30376461]
[1750409068345,0.48348009,106120.0,106110.0,1.29434105]
[1750409068561,0.29501421,106120.0,106110.0,1.20849476]
[1750409068773,0.28559083,106120.0,106110.0,1.18038659]
[1750409068991,0.25732203,106120.0,106110.0,1.18038659]
[1750409069199,0.31570452,106120.0,106110.0,1.18038659]
[1750409069645,0.33455004,106120.0,106110.0,1.00220295]
[1750409069886,0.32512719,106120.0,106110.0,1.29434798]
[1750409070185,0.25732203,106120.0,106110.0,1.30888883]
[1750409070446,0.26674452,106120.0,106110.0,1.28077365]
[1750409070678,0.27616719,106120.0,106110.0,1.30888733]
[1750409070903,0.25732203,106120.0,106110.0,1.30888733]
[1750409071137,0.25932203,106120.0,106110.0,1.68294673]
[1750409071383,0.25932203,106120.0,106110.0,1.77822566]
[1750409072252,0.25271728,106120.0,106110.0,1.79633926]
[1750409072471,0.25271728,106120.0,106110.0,1.43164521]
[1750409072680,0.25271728,106120.0,106110.0,1.83381829]
[1750409073083,0.25271728,106120.0,106110.0,1.43164521]
[1750409073314,0.25271728,106120.0,106110.0,1.83381829]
[1750409073732,0.25271728,106120.0,106110.0,1.43164521]
[1750409073934,0.25271728,106120.0,106110.0,1.83381829]
[1750409074351,0.25271728,106120.0,106110.0,1.43164521]
[1750409075210,0.25271728,106120.0,106110.0,1.16761536]
[1750409075437,0.26875177,106120.0,106110.0,1.30941687]
[1750409075888,0.26875168,106120.0,106110.0,1.30941687]
[1750409076102,0.27817453,106120.0,106110.0,1.30941687]
[1750409076325,0.27817456,106120.0,106110.0,1.30941687]
[1750409076560,0.27817456,106120.0,106110.0,1.23604672]
[1750409076791,5.51881405,106120.0,106110.0,0.76607895]
[1750409077017,5.51881405,106120.0,106110.0,0.70637747]
[1750409077237,5.51881405,106120.0,106110.0,0.68395422]
[1750409077961,5.14350113,106120.0,106110.0,0.68395422]
[1750409078402,5.54286221,106120.0,106110.0,0.68395422]
[1750409079064,5.54286318,106120.0,106110.0,0.68395422]
[1750409080139,5.54286318,106120.0,106110.0,0.68517422]
[1750409081052,5.1406901,106120.0,106110.0,0.68517422]
[1750409081960,5.14068765,106120.0,106110.0,0.68517422]
[1750409082619,5.18936765,106120.0,106110.0,0.71747422]
[1750409082844,5.1799448,106120.0,106110.0,0.71747422]
[1750409083655,5.17994233,106120.0,106110.0,0.71747422]
[1750409083864,5.17994233,106120.0,106110.0,0.88579422]
[1750409086128,5.16231215,106120.0,106110.0,0.88579422]
[1750409086878,5.16231215,106120.0,106110.0,0.88567422]
[1750409087566,5.15569991,106120.0,106110.0,0.88567422]
[1750409087802,5.16231146,106120.0,106110.0,0.88567422]
[1750409088771,5.61108347,106120.0,106110.0,0.68395422]
[1750409089007,6.22989597,106120.0,106110.0,0.65105422]
[1750409089508,6.22989597,106120.0,106110.0,0.49233113]
[1750409089509,6.26999597,106120.0,106110.0,0.49233113]
[1750409089746,6.31999597,106120.0,106110.0,0.23597782]
[1750409089983,6.31999597,106120.0,106110.0,0.18882097]
[1750409090219,6.31999597,106120.0,106110.0,0.14166412]
[1750409090461,4.88805092,106100.0,106090.0,0.02]
[1750409090692,4.88805092,106100.0,106090.0,0.02047642]
[1750409090693,5.57006562,106100.0,106090.0,0.02047642]
[1750409090946,5.62006562,106100.0,106090.0,0.01403517]
[1750409091176,5.44210562,106100.0,106090.0,0.01403517]
[1750409091416,5.66906562,106100.0,106090.0,0.01403517]
[1750409091652,5.61906562,106100.0,106090.0,0.01403517]
[1750409091904,4.89794496,106090.0,106080.0,15.0]
[1750409092124,5.57079966,106090.0,106080.0,15.00014018]
[1750409092349,5.52079966,106090.0,106080.0,15.00014018]
[1750409092578,5.57079966,106090.0,106080.0,15.00014018]
[1750409093084,5.52570339,106090.0,106080.0,15.00014018]
[1750409093319,5.55450355,106090.0,106080.0,15.00014018]
[1750409093555,4.98353047,106090.0,106080.0,15.00014018]
[1750409093781,5.60322355,106090.0,106080.0,15.00014018]
[1750409094232,6.00839663,106090.0,106080.0,15.00014018]
[1750409094461,5.60822355,106090.0,106080.0,15.00114018]
[1750409094897,6.01039663,106090.0,106080.0,15.00114018]
[1750409095130,5.60822355,106090.0,106080.0,15.00114018]
[1750409095349,5.60820488,106090.0,106080.0,15.00114018]
[1750409096491,5.2060318,106090.0,106080.0,15.00114018]
[1750409096705,5.60820488,106090.0,106080.0,15.00114018]
[1750409096971,5.39068488,106090.0,106080.0,15.00114018]
[1750409097197,6.00993796,106090.0,106080.0,15.00114018]
[1750409097423,6.05173796,106090.0,106080.0,15.00114018]
[1750409097654,5.97753281,106090.0,106080.0,14.0861491]